fUSD/lending_fUSD_20250530
["ID","MTS","AMOUNT","RATE_DAILY","PERIOD"]
[363129849,1748593854447,-1602.91,0.00022191,2]
[363129850,1748593854457,-420.0,0.00022191,2]
[363129851,1748593854466,-1345.29,0.00022191,2]
[363129852,1748593854476,-517.74,0.00022191,2]
[363129853,1748593854485,-224.72883578,0.00022191,2]
[363129854,1748593854495,-420.0,0.00022191,2]
[363129855,1748593854505,-420.0,0.00022191,2]
[363129856,1748593854514,-629.25,0.00022191,2]
[363129857,1748593854524,-471.7,0.00022191,2]
[363129858,1748593854535,-683.44,0.00022191,2]
[363129859,1748593854546,-710.4,0.00022191,2]
[363129860,1748593854556,-609.29,0.00022191,2]
[363129861,1748593854565,-1763.39,0.00022191,2]
[363129862,1748593854575,-1135.05,0.00022191,2]
[363129863,1748593854585,-579.11,0.00022191,2]
[363129864,1748593854598,-420.0,0.00022191,2]
[363129865,1748593854609,-420.0,0.00022191,2]
[363129866,1748593854619,-420.0,0.00022191,2]
[363129867,1748593854630,-1383.69,0.00022191,2]
[363129868,1748593854641,-160.0,0.00022191,2]
[363129869,1748593854651,-807.29,0.00022191,2]
[363129870,1748593854661,-1164.48,0.00022191,2]
[363129871,1748593854671,-420.0,0.00022191,2]
[363129872,1748593854681,-420.0,0.00022191,2]
[363129873,1748593854691,-1126.99,0.00022191,2]
[363129874,1748593854701,-1110.64,0.00022191,2]
[363129875,1748593854711,-597.25,0.00022191,2]
[363129876,1748593854720,-633.06,0.00022191,2]
[363129877,1748593854731,-1174.65,0.00022191,2]
[363129878,1748593854741,-423.7,0.00022191,2]
[363129879,1748593854751,-420.0,0.00022191,2]
[363129880,1748593854762,-420.0,0.00022191,2]
[363129881,1748593854771,-420.0,0.00022191,2]
[363129882,1748593854781,-1491.26,0.00022191,2]
[363129883,1748593854791,-644.63,0.00022191,2]
[363129884,1748593854801,-420.0,0.00022191,2]
[363129885,1748593854811,-420.0,0.00022191,2]
[363129886,1748593854821,-587.16,0.00022191,2]
[363129887,1748593854831,-420.0,0.00022191,2]
[363129888,1748593854841,-856.34,0.00022191,2]
[363129889,1748593854855,-1019.74,0.00022191,2]
[363129890,1748593854865,-420.0,0.00022191,2]
[363129891,1748593854874,-420.0,0.00022191,2]
[363129892,1748593854884,-477.4,0.00022191,2]
[363129893,1748593854894,-10284.15,0.00022191,2]
[363129894,1748593854904,-420.0,0.00022191,2]
[363129895,1748593854914,-420.0,0.00022191,2]
[363129896,1748593854924,-1568.86,0.00022191,2]
[363129897,1748593854934,-420.0,0.00022191,2]
[363129898,1748593854944,-644.85,0.00022191,2]
[363129899,1748593854954,-420.0,0.00022191,2]
[363129900,1748593854963,-420.0,0.00022191,2]
[363129901,1748593854973,-671.42,0.00022191,2]
[363129902,1748593854983,-1772.62,0.00022191,2]
[363129903,1748593854994,-420.0,0.00022191,2]
[363129904,1748593855006,-478.59,0.00022191,2]
[363129905,1748593855016,-2241.8,0.00022191,2]
[363129906,1748593855025,-420.0,0.00022191,2]
[363129907,1748593855034,-651.44,0.00022191,2]
[363129908,1748593855044,-884.49,0.00022191,2]
[363129909,1748593855053,-554.42,0.00022191,2]
[363129910,1748593855063,-1742.19,0.00022191,2]
[363129911,1748593855072,-420.0,0.00022191,2]
[363129912,1748593855082,-1547.86,0.00022191,2]
[363129913,1748593855092,-739.47,0.00022191,2]
[363129914,1748593855104,-978.34,0.00022191,2]
[363129915,1748593855115,-420.0,0.00022191,2]
[363129916,1748593855127,-420.0,0.00022191,2]
[363129917,1748593855137,-552.95,0.00022191,2]
[363129918,1748593855148,-420.0,0.00022191,2]
[363129919,1748593855159,-1121.2,0.00022191,2]
[363129920,1748593855169,-946.02,0.00022191,2]
[363129921,1748593855178,-11867.11,0.00022191,2]
[363129922,1748593855188,-420.0,0.00022191,2]
[363129923,1748593855198,-580.44,0.00022191,2]
[363129924,1748593855208,-420.0,0.00022191,2]
[363129925,1748593855218,-1218.91,0.00022191,2]
[363129926,1748593855227,-2134.03,0.00022191,2]
[363129927,1748593855237,-164.17552617,0.00022191,2]
[363129928,1748593855246,-420.0,0.00022191,2]
[363129929,1748593855256,-686.42,0.00022191,2]
[363129930,1748593855266,-1211.09,0.00022191,2]
[363129931,1748593855276,-454.68,0.00022191,2]
[363129932,1748593855285,-420.0,0.00022191,2]
[363129933,1748593855295,-420.0,0.00022191,2]
[363129934,1748593855304,-493.51,0.00022191,2]
[363129935,1748593855314,-875.67,0.00022191,2]
[363129936,1748593855324,-1373.44,0.00022191,2]
[363129937,1748593855334,-420.0,0.00022191,2]
[363129938,1748593855345,-845.55,0.00022191,2]
[363129939,1748593855354,-1636.09,0.00022191,2]
[363129940,1748593855364,-571.86,0.00022191,2]
[363129941,1748593855374,-3579.87,0.00022191,2]
[363129942,1748593855384,-321.08700687,0.00022191,2]
[363129943,1748593855394,-420.0,0.00022191,2]
[363129944,1748593855404,-2817.01,0.00022191,2]
[363129945,1748593855414,-1380.39,0.00022191,2]
[363129946,1748593855424,-420.0,0.00022191,2]
[363129947,1748593855434,-420.0,0.00022191,2]
[363129948,1748593855444,-703.36,0.00022191,2]
[363129949,1748593855454,-2021.6,0.00022191,2]
[363129950,1748593855463,-1558.76,0.00022191,2]
[363129951,1748593855473,-1561.83,0.00022191,2]
[363129952,1748593855483,-814.97,0.00022191,2]
[363129953,1748593855493,-4665.62,0.00022191,2]
[363129954,1748593855503,-1008.9,0.00022191,2]
[363129955,1748593855513,-2917.83,0.00022191,2]
[363129956,1748593855523,-420.0,0.00022191,2]
[363129957,1748593855533,-142224.79,0.00022191,2]
[363129958,1748593855543,-681.48,0.00022191,2]
[363129959,1748593855553,-500.0,0.00022191,2]
[363129960,1748593855564,-1312.81,0.00022191,2]
[363129961,1748593855574,-420.0,0.00022191,2]
[363129962,1748593855584,-1284.97,0.00022191,2]
[363129963,1748593855595,-708.48,0.00022191,2]
[363129964,1748593855605,-1068.41,0.00022191,2]
[363129965,1748593855615,-3558.93,0.00022191,2]
[363129966,1748593855626,-515.83,0.00022191,2]
[363129967,1748593855635,-160.0,0.00022191,2]
[363129968,1748593855646,-420.0,0.00022191,2]
[363129969,1748593855656,-689.07,0.00022191,2]
[363129970,1748593855666,-714.91,0.00022191,2]
[363129971,1748593855676,-729.08,0.00022191,2]
[363129972,1748593855686,-569.22,0.00022191,2]
[363129973,1748593855696,-991.07,0.00022191,2]
[363129974,1748593855706,-420.0,0.00022191,2]
[363129975,1748593855716,-1675.03,0.00022191,2]
[363129976,1748593855726,-5860.19,0.00022191,2]
[363129977,1748593855736,-1933.66,0.00022191,2]
[363129978,1748593855747,-7186.14,0.00022191,2]
[363129979,1748593855756,-1094.06,0.00022191,2]
[363129980,1748593855766,-1015.37,0.00022191,2]
[363129981,1748593855777,-420.0,0.00022191,2]
[363129982,1748593855787,-567.72,0.00022191,2]
[363129983,1748593855797,-1847.61,0.00022191,2]
[363129984,1748593855807,-420.0,0.00022191,2]
[363129985,1748593855817,-591.07,0.00022191,2]
[363129986,1748593855827,-1492.1,0.00022191,2]
[363129987,1748593855837,-939.79,0.00022191,2]
[363129988,1748593855848,-2021.47,0.00022191,2]
[363129989,1748593855858,-1430.26,0.00022191,2]
[363129990,1748593855869,-420.0,0.00022191,2]
[363129991,1748593855879,-3338.32,0.00022191,2]
[363129992,1748593855888,-420.0,0.00022191,2]
[363129993,1748593855898,-1411.58,0.00022191,2]
[363129994,1748593855909,-877.0,0.00022191,2]
[363129995,1748593855919,-829.41,0.00022191,2]
[363129996,1748593855930,-1668.92,0.00022191,2]
[363129997,1748593855940,-744.65,0.00022191,2]
[363129998,1748593855950,-515.67,0.00022191,2]
[363129999,1748593855960,-420.0,0.00022191,2]
[363130000,1748593855970,-849.52,0.00022191,2]
[363130001,1748593855980,-420.0,0.00022191,2]
[363130002,1748593855990,-695.63,0.00022191,2]
[363130003,1748593856000,-1148.54,0.00022191,2]
[363130004,1748593856011,-753.89,0.00022191,2]
[363130005,1748593856021,-450.96,0.00022191,2]
[363130006,1748593856031,-491.71,0.00022191,2]
[363130007,1748593856042,-926.63,0.00022191,2]
[363130008,1748593856052,-713.78,0.00022191,2]
[363130009,1748593856062,-3355.94,0.00022191,2]
[363130010,1748593856295,-420.0,0.00022191,2]
[363130011,1748593856305,-420.0,0.00022191,2]
[363130012,1748593856315,-1241.51,0.00022191,2]
[363130013,1748593856325,-883.16,0.00022191,2]
[363130014,1748593856335,-420.0,0.00022191,2]
[363130015,1748593856346,-1216.76,0.00022191,2]
[363130016,1748593856356,-708.68,0.00022191,2]
[363130017,1748593856366,-604.59,0.00022191,2]
[363130018,1748593856376,-13356.33,0.00022191,2]
[363130019,1748593856385,-497.72,0.00022191,2]
[363130020,1748593856395,-420.0,0.00022191,2]
[363130021,1748593856405,-4383.88,0.00022191,2]
[363130022,1748593856414,-420.0,0.00022191,2]
[363130023,1748593856424,-713.5,0.00022191,2]
[363130024,1748593856433,-1287.15,0.00022191,2]
[363130025,1748593856443,-1195.25,0.00022191,2]
[363130026,1748593856452,-917.27,0.00022191,2]
[363130027,1748593856461,-985.79,0.00022191,2]
[363130028,1748593856471,-1028.59,0.00022191,2]
[363130029,1748593856480,-2439.99,0.00022191,2]
[363130030,1748593856490,-420.0,0.00022191,2]
[363130031,1748593856499,-1012.56,0.00022191,2]
[363130032,1748593856509,-1788.6,0.00022191,2]
[363130033,1748593856518,-4401.74,0.00022191,2]
[363130034,1748593856528,-1076.39,0.00022191,2]
[363130035,1748593856538,-864.09,0.00022191,2]
[363130036,1748593856547,-151.0,0.00022191,7]
[363130037,1748593856557,-629.43,0.00022191,2]
[363130038,1748593856567,-975.18,0.00022191,2]
[363130039,1748593856576,-3002.82,0.00022191,2]
[363130040,1748593856586,-2784.67,0.00022191,2]
[363130041,1748593856596,-1108.49,0.00022191,2]
[363130042,1748593856606,-708.52,0.00022191,2]
[363130043,1748593856615,-420.0,0.00022191,2]
[363130044,1748593856625,-712.14,0.00022191,2]
[363130045,1748593856635,-420.0,0.00022191,2]
[363130046,1748593856644,-1418.28,0.00022191,2]
[363130047,1748593856654,-420.0,0.00022191,2]
[363130048,1748593856664,-488.47,0.00022191,2]
[363130049,1748593856674,-526.35,0.00022191,2]
[363130050,1748593856683,-1078.66,0.00022191,2]
[363130051,1748593856693,-775.23,0.00022191,2]
[363130052,1748593856702,-167.03626169,0.00022191,2]
[363130053,1748593856712,-1777.72,0.00022191,2]
[363130054,1748593856721,-1023.67,0.00022191,2]
[363130055,1748593856731,-420.0,0.00022191,2]
[363130056,1748593856741,-4194.32,0.00022191,2]
[363130057,1748593856750,-1273.3,0.00022191,2]
[363130058,1748593856760,-261.87117425,0.00022191,2]
[363130059,1748593856770,-572.34,0.00022191,2]
[363130060,1748593856780,-718.74,0.00022191,2]
[363130061,1748593856790,-420.0,0.00022191,2]
[363130062,1748593856799,-1236.11,0.00022191,2]
[363130063,1748593856808,-599.18,0.00022191,2]
[363130064,1748593856818,-2907.23,0.00022191,2]
[363130065,1748593856828,-420.0,0.00022191,2]
[363130066,1748593856838,-1141.5,0.00022191,2]
[363130067,1748593856850,-420.0,0.00022191,2]
[363130068,1748593856859,-420.0,0.00022191,2]
[363130069,1748593856869,-1373.46,0.00022191,2]
[363130070,1748593856880,-420.0,0.00022191,2]
[363130071,1748593856894,-2942.37,0.00022191,2]
[363130072,1748593856904,-1421.6,0.00022191,2]
[363130073,1748593856914,-420.0,0.00022191,2]
[363130074,1748593856923,-429.14,0.00022191,2]
[363130075,1748593856933,-420.0,0.00022191,2]
[363130076,1748593856944,-420.0,0.00022191,2]
[363130077,1748593856954,-1824.61,0.00022191,2]
[363130078,1748593856963,-773.67,0.00022191,2]
[363130079,1748593856973,-420.0,0.00022191,2]
[363130080,1748593856983,-743.53,0.00022191,2]
[363130081,1748593856993,-2487.55,0.00022191,2]
[363130082,1748593857004,-3992.09,0.00022191,2]
[363130083,1748593857013,-459.25,0.00022191,2]
[363130084,1748593857023,-3296.26,0.00022191,2]
[363130085,1748593857033,-1049.59,0.00022191,2]
[363130086,1748593857043,-634.13,0.00022191,2]
[363130087,1748593857053,-420.0,0.00022191,2]
[363130088,1748593857063,-675.25,0.00022191,2]
[363130089,1748593857072,-891.35,0.00022191,2]
[363130090,1748593857082,-420.0,0.00022191,2]
[363130091,1748593857092,-776.89,0.00022191,2]
[363130092,1748593857103,-4036.37,0.00022191,2]
[363130093,1748593857113,-1023.95,0.00022191,2]
[363130094,1748593857125,-1394.0,0.00022191,2]
[363130095,1748593857135,-1551.48,0.00022191,2]
[363130096,1748593857145,-4467.99,0.00022191,2]
[363130097,1748593857155,-420.0,0.00022191,2]
[363130098,1748593857164,-420.0,0.00022191,2]
[363130099,1748593857174,-538.73,0.00022191,2]
[363130100,1748593857183,-420.0,0.00022191,2]
[363130101,1748593857194,-489.66,0.00022191,2]
[363130102,1748593857204,-427.61,0.00022191,2]
[363130103,1748593857214,-1186.13,0.00022191,2]
[363130104,1748593857224,-3658.34,0.00022191,2]
[363130105,1748593857234,-887.28,0.00022191,2]
[363130106,1748593857244,-627.41,0.00022191,2]
[363130107,1748593857254,-2377.89,0.00022191,2]
[363130108,1748593857264,-420.0,0.00022191,2]
[363130109,1748593857274,-151.0,0.00022191,7]
[363130110,1748593857284,-881.82,0.00022191,2]
[363130111,1748593857293,-656.15,0.00022191,2]
[363130112,1748593857303,-420.0,0.00022191,2]
[363130113,1748593857312,-424.34,0.00022191,2]
[363130114,1748593857322,-162.98277415,0.00022191,2]
[363130115,1748593857331,-1052.34,0.00022191,2]
[363130116,1748593857342,-7216.47,0.00022191,2]
[363130117,1748593857353,-420.0,0.00022191,2]
[363130118,1748593857362,-420.0,0.00022191,2]
[363130119,1748593857371,-504.93249883,0.00022191,2]
[363130120,1748593857381,-993.14,0.00022191,2]
[363130121,1748593857391,-420.0,0.00022191,2]
[363130122,1748593857401,-2795.64,0.00022191,2]
[363130123,1748593857411,-420.0,0.00022191,2]
[363130124,1748593857420,-420.0,0.00022191,2]
[363130125,1748593857430,-420.0,0.00022191,2]
[363130126,1748593857439,-4977.11,0.00022191,2]
[363130127,1748593857449,-160.0,0.00022191,2]
[363130128,1748593857459,-614.66,0.00022191,2]
[363130129,1748593857468,-825.66,0.00022191,2]
[363130130,1748593857478,-2543.92,0.00022191,2]
[363130131,1748593857488,-445.41,0.00022191,2]
[363130132,1748593857498,-420.0,0.00022191,2]
[363130133,1748593857507,-420.0,0.00022191,2]
[363130134,1748593857517,-420.0,0.00022191,2]
[363130135,1748593857527,-420.0,0.00022191,2]
[363130136,1748593857536,-647.61,0.00022191,2]
[363130137,1748593857546,-1106.73,0.00022191,2]
[363130138,1748593857556,-965.67,0.00022191,2]
[363130139,1748593857566,-420.0,0.00022191,2]
[363130140,1748593857576,-420.0,0.00022191,2]
[363130141,1748593857586,-795.89,0.00022191,2]
[363130142,1748593857596,-420.0,0.00022191,2]
[363130143,1748593857605,-1743.03,0.00022191,2]
[363130144,1748593857615,-420.0,0.00022191,2]
[363130145,1748593857624,-591.77,0.00022191,2]
[363130146,1748593857634,-1059.69,0.00022191,2]
[363130147,1748593857643,-420.0,0.00022191,2]
[363130148,1748593857652,-503.36760929,0.00022191,2]
[363130149,1748593857661,-1054.14,0.00022191,2]
[363130150,1748593857671,-206.80561198,0.00022191,2]
[363130151,1748593857681,-420.0,0.00022191,2]
[363130152,1748593857690,-420.0,0.00022191,2]
[363130153,1748593857700,-420.0,0.00022191,2]
[363130154,1748593857709,-181.0,0.00022192,7]
[363130155,1748593857719,-353.87,0.00022192,2]
[363130156,1748593857729,-187.85553561,0.00022192,2]
[363130157,1748593859304,-3077.29,0.00021917,2]
[363130158,1748593859314,-1005.74222093,0.00021917,2]
[363130159,1748593859354,-354.42777907,0.00021917,2]
[363130160,1748593859365,-352.79610764,0.00021917,2]
[363130161,1748593861176,-67.20389236,0.00021917,2]
[363130162,1748593861186,-420.0,0.00021917,2]
[363130163,1748593861197,-413.51610724,0.00021917,2]
[363130164,1748593861310,-39.90389276,0.00021917,2]
[363130165,1748593861320,-157.755532,0.00021917,2]
[363130166,1748593861330,-420.0,0.00021917,2]
[363130167,1748593861339,-19.36057524,0.0002204,2]
[363130168,1748593861489,-1294.63942476,0.0002204,2]
[363130169,1748593861500,-3077.29,0.00022191,2]
[363130170,1748593861510,-1360.17,0.00022191,2]
[363130171,1748593861520,-518.5,0.00022191,2]
[363130172,1748593861530,-166.06446439,0.00022192,2]
[363130173,1748593861540,-3007.36524133,0.00022195,2]
[363130174,1748593861550,-624.83,0.000222,2]
[363130175,1748593861560,-1074.2529021,0.00022204,2]
[363130176,1748593861569,-763.65886379,0.00022216,2]
[363130177,1748593861580,-3007.36524133,0.00022222,2]
[363130178,1748593861590,-697.0,0.0002225,2]
[363130179,1748593861601,-150.0,0.00022255,2]
[363130180,1748593861611,-500.0,0.00022261,2]
[363130181,1748593861620,-801.0,0.00022261,2]
[363130182,1748593861630,-634.0,0.00022261,2]
[363130183,1748593861640,-1466.0,0.00022261,2]
[363130184,1748593861650,-1268.0,0.00022261,2]
[363130185,1748593861660,-588.0,0.00022261,2]
[363130186,1748593861671,-924.0,0.00022261,2]
[363130187,1748593861681,-556.0,0.00022261,2]
[363130188,1748593861691,-1155.0,0.00022261,2]
[363130189,1748593861701,-1000.0,0.00022266,2]
[363130190,1748593861712,-151.0,0.00022273,7]
[363130191,1748593861722,-763.65886379,0.00022273,2]
[363130192,1748593861732,-300.00120992,0.00022274,2]
[363130193,1748593861742,-150.0,0.00022289,2]
[363130194,1748593861753,-375.0,0.000223,2]
[363130195,1748593861763,-150.0,0.00022313,2]
[363130196,1748593861773,-150.0,0.00022316,2]
[363130197,1748593861783,-1000.0,0.00022326,2]
[363130198,1748593861793,-151.0,0.0002233,7]
[363130199,1748593861803,-763.65886379,0.0002233,2]
[363130200,1748593861814,-256.6558796,0.0002233,2]
[363130201,1748593861823,-266.17146737,0.0002233,2]
[363130202,1748593861834,-500.0,0.00022333,2]
[363130203,1748593861844,-899.46,0.00022333,2]
[363130204,1748593861856,-1873.44089554,0.0002234,2]
[363130205,1748593861866,-289.49672376,0.00022399,2]
[363130206,1748593861876,-713.0,0.000224,2]
[363130207,1748593861887,-1129.2219,0.000224,2]
[363130208,1748593861897,-4503.39736406,0.000224,7]
[363130209,1748593861907,-4503.39736377,0.000224,7]
[363130210,1748593861917,-4503.39736377,0.000224,7]
[363130211,1748593861926,-4503.39736377,0.000224,7]
[363130212,1748593861936,-4503.39736377,0.000224,7]
[363130213,1748593861946,-4503.39736377,0.000224,7]
[363130214,1748593861956,-4503.39736377,0.000224,7]
[363130215,1748593861966,-150.0,0.0002241,2]
[363130216,1748593861976,-150.0,0.0002241,2]
[363130217,1748593861987,-150.0,0.0002241,2]
[363130218,1748593862204,-200.0,0.0002241,2]
[363130219,1748593862215,-150.0,0.0002241,2]
[363130220,1748593862224,-167.7333599,0.0002241,2]
[363130221,1748593862234,-500.0,0.0002241,2]
[363130222,1748593862244,-150.0,0.0002241,2]
[363130223,1748593862254,-1215.0,0.0002241,2]
[363130224,1748593862264,-151.29069845,0.0002241,2]
[363130225,1748593862274,-150.76906654,0.0002241,2]
[363130226,1748593862284,-167.43340892,0.0002241,2]
[363130227,1748593862294,-150.0,0.0002241,2]
[363130228,1748593862305,-150.0,0.0002241,2]
[363130229,1748593862315,-150.0,0.0002241,2]
[363130230,1748593862325,-153.98187331,0.0002241,2]
[363130231,1748593862335,-558.0,0.0002241,2]
[363130232,1748593862345,-500.0,0.0002241,2]
[363130233,1748593862356,-150.0,0.0002241,2]
[363130234,1748593862366,-150.0,0.0002241,2]
[363130235,1748593862377,-150.0,0.0002241,2]
[363130236,1748593862387,-162.26764183,0.0002241,2]
[363130237,1748593862397,-274.33102619,0.0002241,2]
[363130238,1748593862407,-261.48683295,0.0002241,2]
[363130239,1748593862416,-150.0,0.0002241,2]
[363130240,1748593862426,-150.0,0.0002241,2]
[363130241,1748593862436,-172.79355894,0.0002241,2]
[363130242,1748593862446,-500.0,0.0002241,2]
[363130243,1748593862457,-150.0,0.00022412,2]
[363130244,1748593862468,-178.80191287,0.0002242,2]
[363130245,1748593862478,-500.0,0.00022421,2]
[363130246,1748593862487,-151.0,0.00022422,7]
[363130247,1748593862497,-151.0,0.00022422,7]
[363130248,1748593862507,-151.0,0.00022422,7]
[363130249,1748593862517,-151.0,0.00022422,7]
[363130250,1748593862527,-151.0,0.00022422,7]
[363130251,1748593862538,-151.0,0.00022422,7]
[363130252,1748593862549,-151.0,0.00022422,7]
[363130253,1748593862559,-151.0,0.00022422,7]
[363130254,1748593862570,-154.921947,0.00022422,7]
[363130255,1748593862580,-151.0,0.00022422,7]
[363130256,1748593862591,-279.8592596,0.00022422,2]
[363130257,1748593862603,-9078.8628462,0.00022422,2]
[363130258,1748593862613,-151.0,0.00022422,7]
[363130259,1748593862623,-103737.7805787,0.00022422,2]
[363130260,1748593862633,-2131.0011586,0.00022422,2]
[363130261,1748593862644,-500.0,0.00022423,2]
[363130262,1748593862654,-151.0,0.00022424,7]
[363130263,1748593862664,-151.0,0.00022424,7]
[363130264,1748593862674,-151.0,0.00022424,7]
[363130265,1748593862685,-151.0,0.00022424,7]
[363130266,1748593862695,-825.75134203,0.00022429,2]
[363130267,1748593862706,-151.0,0.00022429,7]
[363130268,1748593862716,-151.0,0.00022429,7]
[363130269,1748593862947,-3082.86,0.00022429,2]
[363130270,1748593862967,-2246.15,0.00022429,2]
[363130271,1748593862977,-10084.46,0.00022429,2]
[363130272,1748593862987,-5374.4,0.00022429,2]
[363130273,1748593862996,-11404.07,0.00022429,2]
[363130274,1748593863007,-153.225085,0.00022429,7]
[363130275,1748593863017,-1191.55,0.00022429,2]
[363130276,1748593863026,-12890.15,0.00022429,2]
[363130277,1748593863036,-5798.93,0.00022429,2]
[363130278,1748593863046,-428.36294838,0.00022429,2]
[363130279,1748593863057,-7987.17,0.00022429,2]
[363130280,1748593863067,-1016.01,0.00022429,2]
[363130281,1748593863076,-244.026354,0.00022429,7]
[363130282,1748593863086,-244.026354,0.00022429,7]
[363130283,1748593863096,-962.01,0.00022429,2]
[363130284,1748593863108,-500.0,0.00022429,2]
[363130285,1748593863119,-500.0,0.00022429,2]
[363130286,1748593863133,-320.916788,0.00022429,7]
[363130287,1748593863143,-151.0,0.00022429,7]
[363130288,1748593863153,-154.080537,0.00022429,7]
[363130289,1748593863164,-320.916788,0.00022429,7]
[363130290,1748593863174,-2476.18,0.00022429,2]
[363130291,1748593863183,-151.0,0.00022429,7]
[363130292,1748593863193,-36022.73,0.00022429,2]
[363130293,1748593863203,-3386.16,0.00022429,2]
[363130294,1748593863216,-184.14,0.00022429,2]
[363130295,1748593863226,-2149.0,0.00022429,2]
[363130296,1748593863235,-420.0,0.00022429,2]
[363130297,1748593863245,-7145.39,0.00022429,2]
[363130298,1748593863255,-151.0,0.00022429,7]
[363130299,1748593863264,-500.0,0.00022429,2]
[363130300,1748593863274,-174.05282742,0.00022429,2]
[363130301,1748593863284,-9194.7,0.00022429,2]
[363130302,1748593863294,-151.0,0.00022429,7]
[363130303,1748593863303,-151.0,0.00022429,7]
[363130304,1748593863314,-1772.85,0.00022429,2]
[363130305,1748593863323,-1238.6,0.00022429,2]
[363130306,1748593863333,-1433.96,0.00022429,2]
[363130307,1748593863343,-7579.73038836,0.00022429,2]
[363130308,1748593863435,-3152.16388252,0.00022429,2]
[363130309,1748593865442,180.83,0.00019178,2]
[363130310,1748594014805,526169.0,0.00025,120]
[363130311,1748594387872,1543.0,0.000196,5]
[363130312,1748594419187,797.42,0.00019062,2]
[363130313,1748594452031,1169259.0,0.00025,120]
[363130315,1748594749850,195.42,0.00013699,2]
[363130319,1748594985371,-154.1031104,0.00020063,2]
[363130320,1748595003235,-151.0,0.00019878,2]
[363130321,1748595003259,-22.37644987,0.00020033,2]
[363130322,1748595010417,-163.32702802,0.00020033,2]
[363130323,1748595013546,-207.4,0.00019793,2]
[363130324,1748595015212,-3.6,0.00019793,2]
[363130325,1748595015236,-14.29652211,0.00020033,2]
[363130326,1748595015259,-145.87734819,0.00020033,2]
[363130329,1748595032017,-104.12265181,0.00020033,2]
[363130330,1748595032027,-195.42,0.00020187,2]
[363130331,1748595032036,-200.0,0.00020438,2]
[363130332,1748595032046,-697.97147839,0.00020689,2]
[363130333,1748595032057,-809.24149166,0.00020689,2]
[363130334,1748595032070,-310.07538915,0.00020689,2]
[363130335,1748595032082,-1414.0420148,0.00020689,2]
[363130336,1748595032093,-500.0,0.00020707,2]
[363130337,1748595032103,-1000.0,0.00020736,2]
[363130338,1748595032112,-150.0,0.00020749,2]
[363130339,1748595032411,-150.0,0.00020865,7]
[363130340,1748595032423,-111.50713498,0.00020922,2]
[363130341,1748595032435,-138.49286502,0.00020922,2]
[363130342,1748595032444,-160.20213498,0.0002093,2]
[363130343,1748595032456,-23.01786502,0.0002093,2]
[363130344,1748595032469,-206.79,0.00020979,2]
[363130345,1748595032480,-797.42,0.00021326,2]
[363130346,1748595032493,-400.0,0.000214,7]
[363130347,1748595032503,-166.24,0.0002141,2]
[363130348,1748595032516,-164.93,0.00021421,2]
[363130349,1748595032527,-1200.0,0.00021478,2]
[363130350,1748595032539,-167.27714452,0.00021479,2]
[363130351,1748595032548,-587.38219395,0.00021479,2]
[363130352,1748595032558,-800.0,0.000215,7]
[363130354,1748595032570,-241.38,0.000215,2]
[363130356,1748595032580,-241.38,0.000215,2]